fUSD/lending_fUSD_20250219
["ID","MTS","AMOUNT","RATE_DAILY","PERIOD"]
[353681908,1739988646057,-506.02,0.00011121,2]
[353681911,1739988646068,-591.17,0.00011121,2]
[353681914,1739988646078,-500.0,0.00011121,2]
[353681916,1739988646088,-635.57,0.00011121,2]
[353681918,1739988646098,-500.0,0.00011121,2]
[353681920,1739988646108,-500.0,0.00011121,2]
[353681922,1739988646117,-500.0,0.00011121,2]
[353681924,1739988646127,-500.0,0.00011121,2]
[353681926,1739988646137,-500.0,0.00011121,2]
[353681928,1739988646147,-500.0,0.00011121,2]
[353681930,1739988646159,-612.61,0.00011121,2]
[353681932,1739988646169,-500.0,0.00011121,2]
[353681934,1739988646179,-500.0,0.00011121,2]
[353681936,1739988646188,-500.0,0.00011121,2]
[353681938,1739988646198,-519.53951607,0.00011121,2]
[353681940,1739988646208,-500.0,0.00011121,2]
[353681942,1739988646218,-500.0,0.00011121,2]
[353681944,1739988646228,-998.34,0.00011121,2]
[353681946,1739988646238,-500.0,0.00011121,2]
[353681948,1739988646248,-1915.46,0.00011121,2]
[353681950,1739988646262,-500.0,0.00011121,2]
[353681953,1739988646273,-500.0,0.00011121,2]
[353681955,1739988646283,-500.0,0.00011121,2]
[353681957,1739988646294,-500.0,0.00011121,2]
[353681959,1739988646304,-500.0,0.00011121,2]
[353681961,1739988646315,-517.17,0.00011121,2]
[353681963,1739988646327,-500.0,0.00011121,2]
[353681965,1739988646338,-509.55,0.00011121,2]
[353681967,1739988646348,-500.0,0.00011121,2]
[353681969,1739988646360,-500.0,0.00011121,2]
[353681971,1739988646370,-500.0,0.00011121,2]
[353681974,1739988646380,-500.0,0.00011121,2]
[353681976,1739988646390,-500.0,0.00011121,2]
[353681978,1739988646400,-500.0,0.00011121,2]
[353681980,1739988646411,-500.0,0.00011121,2]
[353681981,1739988646421,-500.0,0.00011121,2]
[353681983,1739988646432,-500.0,0.00011121,2]
[353681985,1739988646442,-571.85,0.00011121,2]
[353681986,1739988646452,-708.48,0.00011121,2]
[353681988,1739988646462,-568.42,0.00011121,2]
[353681989,1739988646472,-500.0,0.00011121,2]
[353681991,1739988646482,-754.41,0.00011121,2]
[353681993,1739988646492,-724.44,0.00011121,2]
[353681994,1739988646502,-500.0,0.00011121,2]
[353681996,1739988646512,-562.77,0.00011121,2]
[353681997,1739988646522,-500.0,0.00011121,2]
[353681999,1739988646532,-500.0,0.00011121,2]
[353682001,1739988646543,-500.0,0.00011121,2]
[353682002,1739988646553,-500.0,0.00011121,2]
[353682004,1739988646564,-500.0,0.00011121,2]
[353682006,1739988646574,-500.0,0.00011121,2]
[353682007,1739988646584,-500.0,0.00011121,2]
[353682009,1739988646595,-500.0,0.00011121,2]
[353682011,1739988646609,-500.0,0.00011121,2]
[353682013,1739988646619,-620.56,0.00011121,2]
[353682015,1739988646631,-654.06,0.00011121,2]
[353682017,1739988646641,-500.0,0.00011121,2]
[353682018,1739988646655,-1319.71,0.00011121,2]
[353682020,1739988646665,-500.0,0.00011121,2]
[353682021,1739988646675,-626.85,0.00011121,2]
[353682023,1739988646685,-577.87,0.00011121,2]
[353682025,1739988646695,-500.0,0.00011121,2]
[353682027,1739988646705,-565.5,0.00011121,2]
[353682028,1739988646714,-500.0,0.00011121,2]
[353682030,1739988646724,-500.0,0.00011121,2]
[353682032,1739988646734,-500.0,0.00011121,2]
[353682033,1739988646743,-500.0,0.00011121,2]
[353682035,1739988646753,-519.09,0.00011121,2]
[353682037,1739988646763,-765.76,0.00011121,2]
[353682038,1739988646773,-500.0,0.00011121,2]
[353682040,1739988646783,-500.0,0.00011121,2]
[353682042,1739988646793,-500.0,0.00011121,2]
[353682044,1739988646803,-364.23142153,0.00011121,2]
[353682046,1739988646813,-584.72,0.00011121,2]
[353682048,1739988646823,-500.0,0.00011121,2]
[353682049,1739988646833,-500.0,0.00011121,2]
[353682051,1739988646844,-500.0,0.00011121,2]
[353682053,1739988646853,-500.0,0.00011121,2]
[353682055,1739988646864,-500.0,0.00011121,2]
[353682057,1739988646875,-500.0,0.00011121,2]
[353682085,1739988647238,-500.0,0.00011121,2]
[353682087,1739988647250,-500.0,0.00011121,2]
[353682089,1739988647259,-768.25,0.00011121,2]
[353682091,1739988647268,-628.09,0.00011121,2]
[353682092,1739988647278,-500.0,0.00011121,2]
[353682094,1739988647288,-656.68,0.00011121,2]
[353682096,1739988647297,-500.0,0.00011121,2]
[353682098,1739988647307,-500.0,0.00011121,2]
[353682099,1739988647316,-500.0,0.00011121,2]
[353682101,1739988647326,-500.0,0.00011121,2]
[353682103,1739988647335,-500.0,0.00011121,2]
[353682104,1739988647344,-817.71,0.00011121,2]
[353682105,1739988647355,-845.13,0.00011121,2]
[353682106,1739988647364,-500.0,0.00011121,2]
[353682107,1739988647375,-500.0,0.00011121,2]
[353682108,1739988647384,-525.19889091,0.00011121,2]
[353682109,1739988647394,-677.61,0.00011121,2]
[353682110,1739988647404,-500.0,0.00011121,2]
[353682111,1739988647415,-382.69,0.00011121,2]
[353682112,1739988647425,-500.0,0.00011121,2]
[353682113,1739988647435,-500.0,0.00011121,2]
[353682114,1739988647444,-500.0,0.00011121,2]
[353682115,1739988647453,-1000.0,0.00011121,2]
[353682117,1739988647463,-800.78,0.00011121,2]
[353682119,1739988647475,-515.31,0.00011121,2]
[353682121,1739988647484,-500.0,0.00011121,2]
[353682123,1739988647494,-500.0,0.00011121,2]
[353682125,1739988647505,-500.0,0.00011121,2]
[353682129,1739988647524,-500.0,0.00011121,2]
[353682131,1739988647535,-534.41,0.00011121,2]
[353682133,1739988647545,-500.0,0.00011121,2]
[353682135,1739988647555,-567.23,0.00011121,2]
[353682137,1739988647565,-799.63,0.00011121,2]
[353682139,1739988647576,-500.0,0.00011121,2]
[353682141,1739988647586,-672.01,0.00011121,2]
[353682143,1739988647596,-500.0,0.00011121,2]
[353682145,1739988647608,-467.17904932,0.00011121,2]
[353682147,1739988647619,-500.0,0.00011121,2]
[353682150,1739988647629,-611.05,0.00011121,2]
[353682152,1739988647639,-500.0,0.00011121,2]
[353682154,1739988647650,-500.0,0.00011121,2]
[353682156,1739988647664,-572.16,0.00011121,2]
[353682158,1739988647674,-500.0,0.00011121,2]
[353682160,1739988647684,-926.93,0.00011121,2]
[353682162,1739988647695,-520.15,0.00011121,2]
[353682164,1739988647706,-500.0,0.00011121,2]
[353682166,1739988647717,-500.0,0.00011121,2]
[353682168,1739988647727,-500.0,0.00011121,2]
[353682170,1739988647738,-500.0,0.00011121,2]
[353682172,1739988647748,-500.0,0.00011121,2]
[353682175,1739988647758,-500.0,0.00011121,2]
[353682177,1739988647768,-500.0,0.00011121,2]
[353682179,1739988647778,-761.0,0.00011121,2]
[353682181,1739988647788,-500.0,0.00011121,2]
[353682183,1739988647797,-678.3,0.00011121,2]
[353682185,1739988647807,-500.0,0.00011121,2]
[353682187,1739988647817,-500.0,0.00011121,2]
[353682189,1739988647827,-500.0,0.00011121,2]
[353682191,1739988647836,-500.0,0.00011121,2]
[353682193,1739988647846,-500.0,0.00011121,2]
[353682195,1739988647856,-500.0,0.00011122,2]
[353682197,1739988647866,-500.0,0.00011122,2]
[353682199,1739988647875,-500.0,0.00011122,2]
[353682201,1739988647885,-500.0,0.00011122,2]
[353682203,1739988647894,-500.0,0.00011122,2]
[353682205,1739988647905,-500.0,0.00011123,2]
[353682207,1739988647914,-500.0,0.00011123,2]
[353682209,1739988647923,-500.0,0.00011123,2]
[353682211,1739988647933,-530.86,0.00011123,2]
[353682213,1739988647943,-876.22,0.00011123,2]
[353682215,1739988647953,-500.0,0.00011123,2]
[353682217,1739988647963,-500.0,0.00011123,2]
[353682219,1739988647972,-599.25,0.00011123,2]
[353682221,1739988647982,-500.0,0.00011123,2]
[353682224,1739988647992,-500.0,0.00011123,2]
[353682226,1739988648002,-524.11,0.00011123,2]
[353682228,1739988648013,-719.01,0.00011123,2]
[353682230,1739988648023,-500.0,0.00011123,2]
[353682232,1739988648034,-507.2,0.00011123,2]
[353682234,1739988648045,-500.0,0.00011123,2]
[353682236,1739988648056,-731.42,0.00011123,2]
[353682238,1739988648067,-500.0,0.00011123,2]
[353682240,1739988648079,-500.0,0.00011123,2]
[353682242,1739988648090,-1313.16,0.00011123,2]
[353682244,1739988648102,-1054.59,0.00011123,2]
[353682246,1739988648112,-696.15,0.00011123,2]
[353682248,1739988648123,-500.0,0.00011123,2]
[353682251,1739988648136,-1221.49,0.00011123,2]
[353682253,1739988648149,-500.0,0.00011123,2]
[353682255,1739988648162,-506.57070583,0.00011123,2]
[353682257,1739988648176,-1347.41,0.00011123,2]
[353682259,1739988648187,-500.0,0.00011123,2]
[353682261,1739988648198,-536.96,0.00011123,2]
[353682263,1739988648208,-723.01,0.00011123,2]
[353682265,1739988648218,-500.0,0.00011123,2]
[353682267,1739988648228,-1482.05,0.00011123,2]
[353682269,1739988648238,-500.0,0.00011123,2]
[353682271,1739988648249,-1042.69,0.00011123,2]
[353682273,1739988648258,-1493.58,0.00011123,2]
[353682275,1739988648268,-500.0,0.00011123,2]
[353682277,1739988648278,-506.79323358,0.00011123,2]
[353682279,1739988648288,-1834.46,0.00011123,2]
[353682281,1739988648298,-670.89,0.00011123,2]
[353682283,1739988648307,-1172.85,0.00011123,2]
[353682285,1739988648318,-500.0,0.00011123,2]
[353682287,1739988648328,-500.0,0.00011123,2]
[353682289,1739988648339,-981.72,0.00011123,2]
[353682290,1739988648349,-599.15,0.00011123,2]
[353682292,1739988648363,-500.0,0.00011123,2]
[353682294,1739988648375,-500.0,0.00011123,2]
[353682296,1739988648386,-500.0,0.00011123,2]
[353682299,1739988648397,-664.94,0.00011123,2]
[353682301,1739988648409,-500.0,0.00011123,2]
[353682303,1739988648419,-1902.2,0.00011123,2]
[353682305,1739988648429,-667.95,0.00011123,2]
[353682307,1739988648440,-1193.44,0.00011123,2]
[353682309,1739988648449,-843.11,0.00011123,2]
[353682311,1739988648461,-1781.33,0.00011123,2]
[353682313,1739988648471,-1154.85,0.00011123,2]
[353682315,1739988648482,-729.98,0.00011123,2]
[353682317,1739988648492,-500.0,0.00011123,2]
[353682319,1739988648502,-500.0,0.00011123,2]
[353682321,1739988648512,-622.89,0.00011123,2]
[353682323,1739988648522,-571.48,0.00011123,2]
[353682325,1739988648533,-1889.83,0.00011123,2]
[353682328,1739988648544,-1034.33,0.00011123,2]
[353682330,1739988648555,-1219.07,0.00011123,2]
[353682332,1739988648566,-925.76,0.00011123,2]
[353682334,1739988648576,-716.09,0.00011123,2]
[353682336,1739988648587,-927.35,0.00011123,2]
[353682338,1739988648597,-1246.49,0.00011123,2]
[353682340,1739988648607,-835.81,0.00011123,2]
[353682342,1739988648618,-500.0,0.00011123,2]
[353682344,1739988648628,-500.0,0.00011123,2]
[353682346,1739988648638,-1094.65,0.00011123,2]
[353682348,1739988648652,-939.53,0.00011123,2]
[353682350,1739988648662,-500.0,0.00011123,2]
[353682352,1739988648672,-500.0,0.00011123,2]
[353682354,1739988648683,-500.0,0.00011123,2]
[353682356,1739988648693,-500.0,0.00011123,2]
[353682358,1739988648702,-1151.06,0.00011123,2]
[353682360,1739988648713,-500.0,0.00011123,2]
[353682362,1739988648723,-1231.93,0.00011123,2]
[353682364,1739988648734,-525.23,0.00011123,2]
[353682366,1739988648745,-1406.77,0.00011123,2]
[353682368,1739988648755,-500.0,0.00011123,2]
[353682370,1739988648764,-1058.82,0.00011123,2]
[353682372,1739988648774,-521.61,0.00011123,2]
[353682374,1739988648784,-500.0,0.00011123,2]
[353682376,1739988648794,-1234.35,0.00011123,2]
[353682378,1739988648804,-607.6,0.00011123,2]
[353682380,1739988648814,-628.57,0.00011123,2]
[353682382,1739988648823,-1001.45,0.00011123,2]
[353682384,1739988648833,-1075.94,0.00011123,2]
[353682386,1739988648843,-1230.37,0.00011123,2]
[353682388,1739988648853,-500.0,0.00011123,2]
[353682390,1739988648862,-735.79,0.00011123,2]
[353682392,1739988648873,-500.0,0.00011123,2]
[353682394,1739988648882,-848.44,0.00011123,2]
[353682396,1739988648893,-658.99,0.00011123,2]
[353682399,1739988648904,-1012.24,0.00011123,2]
[353682401,1739988648914,-610.6,0.00011123,2]
[353682403,1739988648925,-818.28,0.00011123,2]
[353682405,1739988648935,-984.86,0.00011123,2]
[353682407,1739988648944,-531.86,0.00011123,2]
[353682409,1739988648954,-664.18,0.00011123,2]
[353682411,1739988648964,-742.75,0.00011123,2]
[353682413,1739988648974,-500.0,0.00011123,2]
[353682415,1739988648984,-500.0,0.00011123,2]
[353682417,1739988648995,-514.63,0.00011123,2]
[353682419,1739988649005,-500.0,0.00011123,2]
[353682421,1739988649014,-500.0,0.00011123,2]
[353682423,1739988649028,-500.0,0.00011123,2]
[353682425,1739988649037,-850.62,0.00011123,2]
[353682427,1739988649047,-874.47,0.00011123,2]
[353682429,1739988649057,-500.0,0.00011123,2]
[353682431,1739988649068,-957.29,0.00011123,2]
[353682434,1739988649079,-152.05217208,0.00011195,2]
[353682436,1739988649089,-500.0,0.00011203,2]
[353682438,1739988649099,-1287.83,0.00011203,2]
[353682439,1739988649109,-500.0,0.00011203,2]
[353682442,1739988649119,-290.74,0.00011203,2]
[353682444,1739988649131,-838.91,0.00011203,2]
[353682446,1739988649142,-500.0,0.00011203,2]
[353682448,1739988649152,-152.814469,0.00011203,2]
[353682450,1739988649163,-500.0,0.00011203,2]
[353682452,1739988649173,-1022.83,0.00011203,2]
[353682454,1739988649183,-1096.04,0.00011203,2]
[353682456,1739988649193,-1654.53,0.00011203,2]
[353682458,1739988649203,-500.0,0.00011203,2]
[353682460,1739988649213,-1897.11,0.00011203,2]
[353682462,1739988649224,-524.17,0.00011203,2]
[353682464,1739988649234,-1131.81,0.00011203,2]
[353682466,1739988649244,-500.0,0.00011203,2]
[353682468,1739988649254,-584.41,0.00011203,2]
[353682471,1739988649264,-6485.61,0.00011203,2]
[353682473,1739988649274,-1242.77,0.00011203,2]
[353682475,1739988649285,-809.82,0.00011203,2]
[353682477,1739988649298,-500.0,0.00011203,2]
[353682479,1739988649309,-1487.15,0.00011203,2]
[353682481,1739988649319,-983.08,0.00011203,2]
[353682483,1739988649331,-779.31,0.00011203,2]
[353682485,1739988649341,-753.06,0.00011203,2]
[353682487,1739988649351,-1261.82,0.00011203,2]
[353682489,1739988649362,-500.0,0.00011203,2]
[353682491,1739988649371,-685.77,0.00011203,2]
[353682493,1739988649382,-659.5,0.00011203,2]
[353682495,1739988649392,-1172.35,0.00011203,2]
[353682496,1739988649401,-500.0,0.00011203,2]
[353682497,1739988649412,-1202.18,0.00011203,2]
[353682498,1739988649422,-827.77,0.00011203,2]
[353682499,1739988649432,-2398.92,0.00011203,2]
[353682500,1739988649442,-500.0,0.00011203,2]
[353682501,1739988649453,-664.23,0.00011203,2]
[353682502,1739988649462,-1834.41,0.00011203,2]
[353682503,1739988649474,-500.0,0.00011203,2]
[353682504,1739988649484,-707.39,0.00011203,2]
[353682506,1739988649495,-1086.02,0.00011203,2]
[353682508,1739988649505,-823.33,0.00011203,2]
[353682510,1739988649515,-524.92,0.00011203,2]
[353682512,1739988649525,-1035.1,0.00011203,2]
[353682515,1739988649535,-1229.41,0.00011203,2]
[353682517,1739988649545,-500.0,0.00011203,2]
[353682519,1739988649555,-600.22,0.00011203,2]
[353682521,1739988649565,-500.0,0.00011203,2]
[353682523,1739988649576,-692.48,0.00011203,2]
[353682525,1739988649586,-2332.17,0.00011203,2]
[353682527,1739988649595,-500.0,0.00011203,2]
[353682529,1739988649605,-734.38,0.00011203,2]
[353682531,1739988649614,-636.98,0.00011203,2]
[353682533,1739988649624,-700.29,0.00011203,2]
[353682535,1739988649634,-500.0,0.00011203,2]
[353682537,1739988649644,-733.74,0.00011203,2]
[353682539,1739988649656,-902.66,0.00011203,2]
[353682541,1739988649666,-1046.35,0.00011203,2]
[353682543,1739988649676,-500.0,0.00011204,2]
[353682545,1739988649686,-500.0,0.00011204,2]
[353682547,1739988649696,-500.0,0.00011204,2]
[353682549,1739988649706,-792.43,0.00011204,2]
[353682551,1739988649716,-523.5,0.00011204,2]
[353682553,1739988649726,-500.0,0.00011204,2]
[353682566,1739988649838,-1150.97,0.00011204,2]
[353682568,1739988649848,-500.0,0.00011204,2]
[353682570,1739988649857,-902.93,0.00011204,2]
[353682572,1739988649867,-500.0,0.00011204,2]
[353682574,1739988649877,-500.0,0.00011204,2]
[353682576,1739988649886,-500.0,0.00011204,2]
[353682578,1739988649896,-888.28,0.00011204,2]
[353682580,1739988649909,-500.0,0.00011204,2]
[353682582,1739988649920,-596.51039548,0.00011204,2]
[353682584,1739988649930,-633.32,0.00011204,2]
[353682586,1739988649939,-500.0,0.00011204,2]
[353682588,1739988649949,-500.0,0.00011204,2]
[353682590,1739988649958,-500.0,0.00011204,2]
[353682592,1739988649967,-500.0,0.00011204,2]
[353682594,1739988649977,-500.0,0.00011204,2]
[353682596,1739988649986,-500.0,0.00011204,2]
[353682598,1739988649995,-500.0,0.00011204,2]
[353682600,1739988650004,-500.0,0.00011204,2]
[353682602,1739988650014,-730.07,0.00011204,2]
[353682604,1739988650024,-724.58,0.00011204,2]
[353682606,1739988650034,-500.0,0.00011204,2]
[353682608,1739988650043,-500.0,0.00011204,2]
[353682610,1739988650053,-1088.3,0.00011204,2]
[353682612,1739988650062,-500.0,0.00011204,2]
[353682614,1739988650073,-500.0,0.00011204,2]
[353682616,1739988650082,-927.13,0.00011204,2]
[353682618,1739988650091,-500.0,0.00011204,2]
[353682620,1739988650101,-500.0,0.00011204,2]
[353682622,1739988650109,-500.0,0.00011204,2]
[353682624,1739988650119,-1229.33,0.00011204,2]
[353682626,1739988650128,-500.0,0.00011204,2]
[353682628,1739988650138,-500.0,0.00011204,2]
[353682630,1739988650147,-711.44,0.00011204,2]
[353682632,1739988650157,-500.0,0.00011204,2]
[353682634,1739988650167,-500.0,0.00011204,2]
[353682636,1739988650178,-500.0,0.00011204,2]
[353682638,1739988650189,-566.68,0.00011204,2]
[353682640,1739988650199,-157.9430963,0.00011204,2]
[353682642,1739988650208,-500.0,0.00011204,2]
[353682644,1739988650218,-500.0,0.00011204,2]
[353682646,1739988650228,-500.0,0.00011204,2]
[353682648,1739988650237,-595.26,0.00011204,2]
[353682650,1739988650247,-500.0,0.00011204,2]
[353682652,1739988650257,-765.08,0.00011204,2]
[353682654,1739988650267,-769.93,0.00011204,2]
[353682656,1739988650276,-500.0,0.00011204,2]
[353682658,1739988650286,-1129.32,0.00011204,2]
[353682660,1739988650296,-500.0,0.00011204,2]
[353682662,1739988650305,-500.0,0.00011204,2]
[353682664,1739988650316,-500.0,0.00011204,2]
[353682666,1739988650325,-500.0,0.00011204,2]
[353682668,1739988650335,-523.95368918,0.00011204,2]
[353682669,1739988650349,-500.0,0.00011204,2]
[353682671,1739988650359,-500.0,0.00011204,2]
[353682673,1739988650371,-606.16,0.00011204,2]
[353682675,1739988650381,-500.0,0.00011204,2]
[353682677,1739988650391,-500.0,0.00011204,2]
[353682679,1739988650401,-571.77,0.00011204,2]
[353682681,1739988650413,-500.0,0.00011204,2]
[353682683,1739988650423,-500.0,0.00011204,2]
[353682685,1739988650432,-571.39,0.00011204,2]
[353682687,1739988650443,-500.0,0.00011204,2]
[353682689,1739988650453,-500.0,0.00011204,2]
[353682691,1739988650463,-500.0,0.00011204,2]
[353682693,1739988650473,-500.0,0.00011204,2]
[353682695,1739988650482,-500.0,0.00011204,2]
[353682697,1739988650494,-503.76,0.00011204,2]
[353682699,1739988650505,-500.0,0.00011204,2]
[353682701,1739988650514,-500.0,0.00011204,2]
[353682703,1739988650524,-528.76,0.00011204,2]
[353682705,1739988650535,-500.0,0.00011204,2]
[353682707,1739988650545,-942.0,0.00011204,2]
[353682709,1739988650557,-500.0,0.00011204,2]
[353682711,1739988650567,-500.0,0.00011204,2]
[353682713,1739988650579,-833.72,0.00011204,2]
[353682715,1739988650589,-500.0,0.00011204,2]
[353682717,1739988650599,-500.0,0.00011204,2]
[353682719,1739988650611,-293.13209497,0.00011204,2]
[353682721,1739988650621,-500.0,0.00011204,2]
[353682723,1739988650631,-500.0,0.00011204,2]
[353682725,1739988650641,-730.43,0.00011204,2]
[353682727,1739988650652,-500.0,0.00011204,2]
[353682729,1739988650666,-500.0,0.00011204,2]
[353682731,1739988650676,-500.0,0.00011204,2]
[353682733,1739988650686,-500.0,0.00011204,2]
[353682735,1739988650698,-500.0,0.00011204,2]
[353682737,1739988650708,-693.73,0.00011204,2]
[353682739,1739988650719,-500.0,0.00011204,2]
[353682741,1739988650731,-584.83,0.00011204,2]
[353682743,1739988650743,-500.0,0.00011204,2]
[353682745,1739988650754,-500.0,0.00011204,2]
[353682747,1739988650763,-500.0,0.00011204,2]
[353682749,1739988650774,-500.0,0.00011204,2]
[353682751,1739988650784,-982.53,0.00011204,2]
[353682753,1739988650793,-541.39,0.00011204,2]
[353682755,1739988650803,-500.0,0.00011204,2]
[353682757,1739988650813,-500.0,0.00011204,2]
[353682759,1739988650823,-500.0,0.00011204,2]
[353682761,1739988650833,-500.0,0.00011204,2]
[353682763,1739988650843,-156.70219814,0.00011204,2]
[353682765,1739988650852,-500.0,0.00011204,2]
[353682767,1739988650862,-1000.0,0.00011204,2]
[353682769,1739988650872,-1000.0,0.00011204,2]
[353682771,1739988650881,-500.0,0.00011204,2]
[353682773,1739988650891,-1000.0,0.00011204,2]
[353682775,1739988650902,-500.0,0.00011204,2]
[353682777,1739988650913,-500.0,0.00011204,2]
[353682779,1739988650923,-262.08285876,0.00011204,2]
[353682782,1739988650934,-500.0,0.00011204,2]
[353682784,1739988650944,-500.0,0.00011204,2]
[353682785,1739988650954,-500.0,0.00011204,2]
[353682788,1739988650964,-500.0,0.00011204,2]
[353682789,1739988650974,-573.94,0.00011204,2]
[353682791,1739988650985,-500.0,0.00011204,2]
[353682794,1739988650995,-1279.11,0.00011204,2]
[353682796,1739988651006,-500.0,0.00011204,2]
[353682798,1739988651015,-500.0,0.00011204,2]
[353682799,1739988651025,-460.63640915,0.00011204,2]
[353682801,1739988651035,-500.0,0.00011204,2]
[353682804,1739988651046,-500.0,0.00011204,2]
[353682805,1739988651055,-500.0,0.00011204,2]
[353682808,1739988651066,-500.0,0.00011204,2]
[353682810,1739988651076,-340.66543236,0.00011204,2]
[353682812,1739988651086,-500.0,0.00011204,2]
[353682814,1739988651096,-612.17,0.00011204,2]
[353682816,1739988651106,-500.0,0.00011204,2]
[353682818,1739988651116,-661.08,0.00011204,2]
[353682820,1739988651125,-500.0,0.00011204,2]
[353682822,1739988651137,-500.0,0.00011204,2]
[353682824,1739988651147,-500.0,0.00011204,2]
[353682826,1739988651156,-500.0,0.00011204,2]
[353682828,1739988651167,-500.0,0.00011204,2]
[353682830,1739988651177,-1129.51,0.00011204,2]
[353682832,1739988651186,-500.0,0.00011204,2]
[353682834,1739988651197,-500.0,0.00011204,2]
[353682835,1739988651207,-500.0,0.00011204,2]
[353682837,1739988651217,-752.41,0.00011204,2]
[353682839,1739988651226,-582.36,0.00011204,2]
[353682841,1739988651236,-500.0,0.00011204,2]
[353682843,1739988651246,-500.0,0.00011204,2]
[353682845,1739988651257,-500.0,0.00011204,2]
[353682847,1739988651267,-1171.07,0.00011204,2]
[353682849,1739988651277,-500.0,0.00011204,2]
[353682851,1739988651287,-500.0,0.00011204,2]
[353682852,1739988651297,-500.0,0.00011204,2]
[353682853,1739988651308,-500.0,0.00011204,2]
[353682854,1739988651317,-645.38,0.00011204,2]
[353682855,1739988651327,-500.0,0.00011204,2]
[353682856,1739988651337,-1052.41,0.00011204,2]
[353682857,1739988651347,-537.20882044,0.00011204,2]
[353682858,1739988651356,-549.13080348,0.00011204,2]
[353682859,1739988651365,-534.14,0.00011204,2]
[353682860,1739988651375,-500.0,0.00011204,2]
[353682862,1739988651385,-500.0,0.00011204,2]
[353682864,1739988651396,-500.0,0.00011204,2]
[353682866,1739988651408,-500.0,0.00011204,2]
[353682868,1739988651418,-502.85,0.00011204,2]
[353682870,1739988651429,-500.0,0.00011204,2]
[353682872,1739988651439,-805.29,0.00011204,2]
[353682873,1739988651450,-500.0,0.00011204,2]
[353682875,1739988651459,-500.0,0.00011204,2]
[353682877,1739988651469,-802.52,0.00011204,2]
[353682879,1739988651479,-500.0,0.00011204,2]
[353682881,1739988651489,-500.0,0.00011204,2]
[353682883,1739988651499,-682.08,0.00011204,2]
[353682885,1739988651510,-500.0,0.00011204,2]
[353682888,1739988651520,-500.0,0.00011204,2]
[353682889,1739988651531,-1324.37,0.00011204,2]
[353682891,1739988651541,-500.0,0.00011204,2]
[353682893,1739988651553,-500.0,0.00011204,2]
[353682896,1739988651565,-500.0,0.00011204,2]
[353682897,1739988651575,-500.0,0.00011204,2]
[353682899,1739988651586,-500.0,0.00011204,2]
[353682901,1739988651596,-500.0,0.00011204,2]
[353682903,1739988651607,-500.0,0.00011204,2]
[353682905,1739988651617,-589.82,0.00011204,2]
[353682907,1739988651627,-580.35,0.00011204,2]
[353682909,1739988651638,-890.7,0.00011204,2]
[353682911,1739988651647,-500.0,0.00011204,2]